bitfinex/quotes_ETHUSD_20251126
["timestamp","ask_amount","ask_price","bid_price","bid_amount"]
[1764149664873,0.31748794,2909.6,2908.6,0.6777]
[1764149665073,0.31748794,2909.6,2908.7,0.485]
[1764149665274,0.7758,2909.7,2908.8,6.87568756]
[1764149665493,0.3248,2909.7,2908.8,6.87568756]
[1764149665694,0.72559411,2909.6,2908.8,3.43784378]
[1764149666092,1.17659411,2909.6,2908.8,3.43784378]
[1764149666299,1.17659411,2909.6,2908.8,6.87568756]
[1764149666903,0.451,2909.6,2908.8,6.87568756]
[1764149667105,1.17659411,2909.6,2908.8,6.87568756]
[1764149667312,1.17659411,2909.6,2909.4,0.001]
[1764149667711,0.098,2909.5,2909.4,0.001]
[1764149667913,0.5455,2909.5,2909.4,0.001]
[1764149669715,0.098,2909.5,2909.4,0.001]
[1764149670230,0.3248,2909.7,2909.4,0.001]
[1764149670418,0.221,2909.7,2909.6,0.4665]
[1764149670812,0.221,2909.7,2909.4,3.43807376]
[1764149673825,0.221,2909.7,2909.4,0.001]
[1764149675240,0.221,2909.7,2909.5,2.6876]
[1764149675833,0.098,2909.6,2909.5,2.6876]
[1764149677941,0.5455,2909.6,2909.4,0.001]
[1764149678099,1.23179811,2909.5,2909.4,0.001]
[1764149678299,2.28061709,2909.5,2909.4,0.001]
[1764149678553,2.72461709,2909.5,2909.4,0.001]
[1764149679233,2.70743496,2909.5,2909.4,0.001]
[1764149679939,6.14445162,2909.5,2909.4,0.001]
[1764149680143,1.53784085,2909.5,2909.4,0.001]
[1764149680444,0.41822731,2909.5,2909.4,0.001]
[1764149680813,0.1007,2909.5,2909.4,0.001]
[1764149681544,0.41822731,2909.5,2909.4,0.001]
[1764149682335,4.26331077,2909.5,2909.4,0.001]
[1764149682543,4.58083808,2909.5,2909.4,0.001]
[1764149682728,1.14382142,2909.5,2909.4,0.001]
[1764149683051,1.13109811,2909.4,2908.0,0.485]
[1764149683350,0.0044,2909.2,2908.5,0.485]
[1764149683511,0.3217164,2909.2,2908.5,3.92312601]
[1764149683711,0.0044,2909.2,2908.8,0.485]
[1764149684030,0.31729999,2909.2,2907.9,0.4137]
[1764149684238,3.65835492,2909.3,2908.7,0.5969]
[1764149685215,0.94659411,2909.3,2908.7,4.03485653]
[1764149685535,0.221,2909.3,2908.7,4.03485653]
[1764149685850,0.221,2909.3,2908.8,0.4869]
[1764149686068,0.94659411,2909.3,2909.1,0.001]
[1764149686218,0.221,2909.3,2909.1,0.001]
[1764149686616,0.94659411,2909.3,2909.1,0.001]
[1764149686839,0.221,2909.3,2909.1,0.001]
[1764149687044,0.94659411,2909.3,2909.1,0.001]
[1764149687840,0.0619,2909.2,2909.1,0.001]
[1764149688661,4.2248652,2909.2,2909.1,0.001]
[1764149689022,0.78749411,2909.2,2909.1,0.001]
[1764149689341,4.2248652,2909.2,2909.1,0.001]
[1764149690050,0.72559411,2909.2,2909.1,0.488]
[1764149690232,1.04320518,2909.2,2909.1,0.488]
[1764149690833,4.54667627,2909.2,2909.1,0.001]
[1764149691056,1.10930518,2909.2,2909.1,0.001]
[1764149691251,4.54667627,2909.2,2909.1,0.001]
[1764149691429,1.10930518,2909.2,2909.1,0.001]
[1764149691635,4.54667627,2909.2,2909.1,0.001]
[1764149692341,1.10930518,2909.2,2909.1,0.001]
[1764149692664,0.72559411,2909.2,2909.1,1.1727]
[1764149693159,1.0441013,2909.2,2909.1,1.1727]
[1764149694026,1.0441013,2909.2,2909.1,0.6858]
[1764149694968,1.0441013,2909.2,2909.1,0.488]
[1764149695261,1.0441013,2909.2,2909.1,0.001]
[1764149696123,6.16498646,2909.2,2909.1,0.001]
[1764149696548,7.08200038,2909.2,2909.1,0.001]
[1764149698751,6.16498646,2909.2,2909.1,0.001]
[1764149698957,7.08200038,2909.2,2909.1,0.001]
[1764149700174,7.08091607,2909.2,2909.1,0.001]
[1764149701180,7.08091607,2909.2,2908.7,0.11]
[1764149701181,1.13109811,2909.1,2908.7,0.11]
[1764149701383,3.67638655,2908.8,2908.7,0.11]
[1764149701587,9.41774204,2908.8,2908.7,0.11]
[1764149701747,10.82070571,2908.8,2908.7,0.11]
[1764149702674,14.25774949,2908.8,2908.7,0.11]
[1764149703991,0.72559411,2908.6,2907.5,0.469]
[1764149704201,1.63951036,2908.5,2907.5,0.469]
[1764149704350,0.405504,2908.3,2907.5,0.469]
[1764149704554,0.31850719,2908.2,2907.5,0.469]
[1764149704885,7.28284658,2908.1,2907.0,0.1978]
[1764149705089,0.405504,2907.9,2907.1,0.469]
[1764149705691,0.405504,2907.9,2907.8,0.4784]
[1764149705890,0.221,2908.0,2907.8,0.4784]
[1764149706093,0.002,2909.4,2907.9,0.9474]
[1764149706094,0.91549917,2908.9,2907.9,0.9474]
[1764149706331,0.72559411,2908.7,2907.9,0.4784]
[1764149706530,1.04960394,2908.6,2908.0,0.469]
[1764149706713,0.31765359,2908.5,2908.1,3.43867129]
[1764149707036,0.221,2908.8,2908.1,7.07404258]
[1764149707204,0.3177336,2908.7,2908.4,0.4784]
[1764149707405,0.3177336,2908.7,2908.2,0.50338553]
[1764149707718,0.3177336,2908.7,2908.6,0.4784]
[1764149707916,0.3177336,2908.7,2908.6,0.9474]
[1764149708094,0.221,2908.8,2908.6,0.9474]
[1764149708294,0.221,2908.8,2908.7,0.4784]
[1764149708667,0.221,2909.1,2908.7,0.9474]
[1764149708869,0.221,2909.1,2909.0,0.4784]
[1764149709166,0.221,2909.1,2908.4,0.469]
[1764149709371,1.26456026,2909.1,2908.4,0.469]
[1764149709669,0.31796615,2909.0,2908.4,0.469]
[1764149709847,1.04356026,2909.0,2908.4,0.469]
[1764149710039,0.72559411,2909.0,2908.4,0.469]
[1764149710570,0.317959,2908.9,2908.4,0.469]
[1764149710764,0.221,2909.1,2908.5,6.87639676]
[1764149710942,0.317964,2909.0,2908.8,0.4784]
[1764149711356,0.317964,2909.0,2908.9,0.4784]
[1764149711756,0.002,2909.4,2908.9,0.9474]
[1764149711972,0.223,2909.4,2909.3,0.4784]
[1764149712159,0.32001765,2909.4,2909.3,0.9474]
[1764149712362,0.002,2909.4,2909.3,0.9474]
[1764149712732,0.002,2909.4,2909.3,4.38465294]
[1764149713470,0.002,2909.4,2909.3,0.9474]
[1764149713975,0.002,2909.4,2909.3,0.4784]
[1764149714465,0.002,2909.4,2909.3,4.40045294]
[1764149717665,0.002,2909.4,2909.3,7.08805294]
[1764149718264,0.002,2909.4,2909.3,3.6508]
[1764149718470,0.002,2909.4,2909.3,3.166]
[1764149718644,0.002,2909.4,2909.3,2.6876]
[1764149718843,0.0899,2909.4,2909.3,2.6876]
[1764149719668,0.002,2909.4,2909.3,3.1511]
[1764149720172,0.002,2909.4,2909.3,7.07315294]
[1764149721755,1.13109811,2909.1,2907.4,0.4848]
[1764149721947,0.72559411,2908.2,2907.5,0.4848]
[1764149722469,0.221,2908.3,2908.1,0.4635]
[1764149722934,0.221,2908.3,2908.2,0.4635]
[1764149723357,0.405504,2908.7,2908.2,0.4635]
[1764149723570,0.77844186,2908.6,2908.0,3.43874844]
[1764149723806,0.405504,2908.7,2908.1,0.1918]
[1764149723966,0.31734074,2908.6,2908.1,0.1918]
[1764149724402,0.31734074,2908.6,2908.1,0.6766]
[1764149724808,0.31734074,2908.6,2908.1,0.1918]
[1764149725012,1.04293485,2908.6,2908.1,3.63043867]
[1764149725221,0.72559411,2908.6,2908.1,3.63043867]
[1764149726412,0.405504,2908.7,2908.1,4.11523867]
[1764149726578,1.04297365,2908.6,2908.1,4.11523867]
[1764149726779,0.72559411,2908.6,2908.1,4.11523867]
[1764149727109,0.72559411,2908.6,2908.1,0.6766]
[1764149727425,0.72479411,2908.6,2908.1,0.1918]
[1764149727715,3.84347827,2908.7,2908.1,0.1918]
[1764149727881,0.31741146,2908.6,2908.1,3.63045787]
[1764149728082,0.31741146,2908.6,2908.1,3.63045092]
[1764149728292,0.31741146,2908.6,2908.1,0.1918]
[1764149729282,1.18669411,2908.5,2907.9,3.4389078]
[1764149729612,0.72559411,2908.5,2907.9,3.4389078]
[1764149730022,0.72559411,2908.5,2907.9,3.9237078]
[1764149731989,0.72559411,2908.6,2907.9,3.9237078]
[1764149732222,0.31759935,2908.5,2907.9,3.4389078]
[1764149732427,0.31759935,2908.5,2907.7,6.87828868]
[1764149732623,0.221,2908.4,2907.8,0.4848]
[1764149733810,0.221,2908.4,2907.9,3.4389078]
[1764149734014,0.221,2908.4,2907.9,6.8778156]
[1764149734217,0.221,2908.4,2908.0,0.4848]
[1764149735126,0.72559411,2909.0,2908.3,0.4635]
[1764149735426,0.53868935,2908.9,2908.3,0.4635]
[1764149735615,0.31768935,2908.8,2908.3,0.4635]
[1764149736125,0.31768935,2908.8,2908.7,0.4635]
[1764149736325,0.221,2908.9,2908.7,0.4635]
[1764149738631,0.221,2908.9,2908.5,3.43818678]
[1764149739344,0.221,2908.9,2908.4,3.43826229]
[1764149739649,0.221,2908.9,2908.5,0.4848]
[1764149740143,0.221,2908.9,2908.6,2.6876]
[1764149740708,0.221,2908.9,2908.8,0.4635]
[1764149740909,0.002,2908.9,2908.8,0.4635]
[1764149741110,0.002,2908.9,2908.8,3.6359]
[1764149741310,0.002,2908.9,2908.8,0.9483]
[1764149741526,0.002,2908.9,2908.6,2.6876]
[1764149741723,0.0046,2908.7,2908.6,2.6876]
[1764149741942,0.002,2908.9,2908.6,2.6876]
[1764149742646,0.002,2908.9,2908.6,6.12560284]
[1764149742850,0.002,2908.9,2908.6,3.43800284]
[1764149743349,0.002,2908.9,2908.6,6.87608301]
[1764149743551,0.002,2908.9,2908.6,7.36088301]
[1764149744851,0.002,2908.9,2908.6,3.43800284]
[1764149746664,0.002,2908.9,2908.4,6.8766332]
[1764149747028,0.002,2908.9,2908.5,0.4798]
[1764149748554,2.71351401,2908.6,2908.5,0.4798]
[1764149748755,2.71351401,2908.6,2908.5,4.38659838]
[1764149754610,2.71351401,2908.6,2908.0,0.001]
[1764149754611,4.54170547,2908.6,2908.0,0.001]
[1764149754810,2.71351401,2908.1,2908.0,3.43978954]
[1764149755165,2.71351401,2908.1,2908.0,4.38818954]
[1764149756361,0.002,2908.9,2908.0,8.04697908]
[1764149756567,2.71351401,2908.3,2908.1,0.6723]
[1764149756963,2.71351401,2908.3,2908.2,0.9484]
[1764149757367,2.71351401,2908.3,2908.2,4.38695305]
[1764149757758,3.19661401,2908.3,2908.0,3.43977543]
[1764149757987,2.71351401,2908.1,2908.0,3.91957543]
[1764149758183,2.71351401,2908.1,2908.0,4.38817543]
[1764149758560,2.71351401,2908.1,2908.0,3.90837543]
[1764149759672,2.71351401,2908.1,2908.0,0.4696]
[1764149760098,2.71351401,2908.1,2908.0,3.90838954]
[1764149760290,2.71351401,2908.1,2908.0,0.4696]
[1764149760490,2.71351401,2908.1,2908.0,3.90838954]
[1764149760995,5.51012802,2908.1,2908.0,0.001]
[1764149761199,5.51012802,2908.1,2907.1,3.43985415]
[1764149761200,0.405504,2908.0,2907.1,3.43985415]
[1764149761409,2.71351401,2907.2,2907.1,3.43985415]
[1764149761799,2.71351401,2907.2,2907.1,3.90845415]
[1764149762005,2.71351401,2907.2,2907.1,4.38825415]
[1764149762609,2.71351401,2907.5,2907.1,7.8281083]
[1764149762780,2.71351401,2907.3,2907.1,7.8281083]
[1764149763113,2.71351401,2907.3,2907.2,0.4528]
[1764149763314,2.71351401,2907.3,2907.2,0.9399]
[1764149763623,2.93351401,2907.9,2907.2,11.25910746]
[1764149763818,2.71351401,2907.7,2907.3,0.4528]
[1764149764301,2.71351401,2907.7,2907.6,0.4871]
[1764149764501,2.71351401,2907.7,2907.6,0.9399]
[1764149764905,0.91859411,2908.4,2907.6,0.9399]
[1764149765081,2.71351401,2908.0,2907.8,0.4871]
[1764149765282,2.71351401,2907.9,2907.2,6.87947164]
[1764149765486,2.71351401,2907.6,2907.3,0.4528]
[1764149765723,2.71351401,2907.8,2907.5,0.4871]
[1764149766091,2.71351401,2907.8,2907.7,0.4871]
[1764149766518,0.22,2908.3,2907.7,0.9399]
[1764149766818,0.31851666,2908.2,2907.7,0.9399]
[1764149767323,0.31851666,2908.2,2907.2,13.75894328]
[1764149767324,0.22,2908.3,2908.1,0.6745]
[1764149767629,0.223,2908.6,2908.2,7.3642061]
[1764149767813,0.223,2908.6,2908.5,0.4871]
[1764149768328,0.2982,2908.6,2908.2,3.43855305]
[1764149768507,0.2982,2908.6,2908.2,6.8771061]
[1764149768830,0.223,2908.6,2908.2,3.43855305]
[1764149768986,0.223,2908.6,2907.5,3.43931092]
[1764149768987,3.61136897,2908.6,2907.5,3.43931092]
[1764149769188,3.61136897,2908.6,2907.9,0.4528]
[1764149769414,3.61136897,2908.6,2908.0,6.87757908]
[1764149769785,3.61136897,2908.6,2908.1,0.6402]
[1764149769786,0.223,2908.6,2908.1,0.6402]
[1764149769988,0.223,2908.6,2908.2,0.4528]
[1764149770591,0.002,2908.6,2908.2,0.4528]
[1764149771219,0.002,2908.6,2908.5,0.4871]
[1764149771821,0.002,2908.6,2908.5,4.37809838]
[1764149772825,0.002,2908.6,2908.5,4.59809838]
[1764149772999,0.002,2908.9,2908.6,1.13109811]
[1764149773201,0.002,2908.9,2908.8,1.21269411]
[1764149773691,0.002,2908.9,2908.8,5.10333789]
[1764149773892,0.002,2908.9,2908.8,4.37774378]
[1764149775198,0.002,2908.9,2908.8,3.92494378]
[1764149775423,0.002,2908.9,2908.8,4.40974378]
[1764149775829,0.002,2909.7,2908.8,15.85437323]
[1764149776032,0.002,2909.7,2909.3,0.4552]
[1764149776336,0.002,2909.7,2908.9,1.61589811]
[1764149776337,0.002,2909.7,2909.6,0.4552]
[1764149776729,0.0012,2909.7,2909.6,0.94]
[1764149777739,0.0012,2909.7,2909.6,1.161]
[1764149777925,0.0012,2909.7,2909.6,5.32349265]
[1764149780525,0.0012,2909.7,2909.6,5.72899665]
[1764149780742,0.0012,2909.7,2909.6,5.32249265]
[1764149780911,0.0012,2909.7,2909.6,5.10249265]
[1764149781112,0.0012,2909.7,2909.6,5.32249265]
[1764149782843,0.0012,2909.7,2909.6,5.35686163]
[1764149783016,0.0012,2909.7,2909.6,5.76236563]
[1764149783342,0.0012,2909.7,2909.6,5.72799665]
[1764149783549,0.0012,2909.7,2909.6,5.76236563]
[1764149783725,0.0012,2909.7,2909.6,5.72799665]
[1764149783960,0.002,2910.3,2909.8,0.405504]
[1764149784168,0.002,2910.3,2909.9,0.48956544]
[1764149784490,0.002,2910.3,2909.9,7.82410376]
[1764149784657,0.002,2910.3,2909.9,5.32213832]
[1764149784986,0.002,2910.3,2909.9,5.35650376]
[1764149785288,0.002,2910.3,2909.9,5.32213832]
[1764149785644,0.002,2910.3,2909.9,5.35650376]
[1764149786254,0.002,2910.3,2909.9,5.32213832]
[1764149788149,0.002,2910.3,2909.9,5.35650376]
[1764149788349,0.002,2910.3,2909.9,5.32213832]
[1764149788779,0.002,2910.3,2909.9,5.31461477]
[1764149789188,0.002,2910.3,2909.9,5.34898021]
[1764149790058,0.1849,2910.9,2910.6,2.6836]
[1764149790059,0.002,2910.9,2910.6,2.6836]
[1764149790248,0.002,2910.9,2910.7,2.6836]
[1764149790479,0.1142,2910.9,2910.7,2.6836]
[1764149790692,0.1482,2910.8,2910.7,6.11919968]
[1764149791148,0.6234,2910.8,2910.7,2.6836]
[1764149793187,4.05888165,2910.8,2910.5,2.6836]
[1764149793387,0.4785,2910.7,2910.5,2.6836]
[1764149793588,0.4785,2910.7,2910.6,2.6836]
[1764149793887,0.6267,2910.7,2910.6,2.6836]
[1764149796600,0.6287,2910.7,2910.6,2.6836]
[1764149797752,4.06429968,2910.7,2910.6,2.6836]
[1764149798050,0.6287,2910.7,2910.6,2.6836]
[1764149798902,4.78745813,2910.7,2910.6,2.6836]
[1764149799990,4.38195413,2910.7,2910.6,2.6836]
[1764149800166,0.94635445,2910.7,2910.6,2.6836]
[1764149800368,1.67974126,2910.7,2910.6,2.6836]
[1764149800961,0.94635445,2910.7,2910.6,2.6836]
[1764149801158,0.46785445,2910.7,2910.6,2.6836]
[1764149801363,0.46705445,2910.7,2910.6,2.6836]
[1764149801862,1.20140248,2910.7,2910.6,2.6836]
[1764149802156,1.05400248,2910.7,2910.6,2.6836]
[1764149802388,0.31965445,2910.7,2910.6,2.6836]
[1764149802615,0.46705445,2910.7,2910.6,2.6836]
[1764149802900,0.31965445,2910.7,2910.6,6.11931772]
[1764149803482,1.05400248,2910.7,2910.6,6.11931772]
[1764149803700,0.31965445,2910.7,2910.6,7.05931772]
[1764149804587,0.31965445,2910.7,2910.6,6.57451772]
[1764149805084,0.31965445,2910.7,2910.6,7.03921772]
[1764149805787,0.002,2910.7,2910.6,7.03921772]
[1764149807706,0.002,2910.7,2910.6,6.79451772]
[1764149808112,0.002,2910.7,2910.6,7.25921772]
[1764149814269,0.002,2910.9,2910.7,2.6816]
[1764149814424,0.002,2910.9,2910.8,4.61397576]
[1764149815142,0.002,2910.9,2910.8,3.88838165]
[1764149816223,0.002,2910.9,2910.8,4.35308165]
[1764149817691,0.002,2910.9,2910.8,7.02468165]
[1764149818157,0.002,2910.9,2910.8,3.88838165]
[1764149818745,0.002,2910.9,2910.8,4.35308165]
[1764149819137,0.002,2910.9,2910.8,3.88838165]
[1764149820046,0.002,2910.9,2910.8,4.35308165]
[1764149820664,0.002,2910.9,2910.8,5.11303057]
[1764149821562,0.002,2910.9,2910.8,5.07867576]
[1764149821991,0.002,2910.9,2910.8,5.11303057]
[1764149822571,0.002,2910.9,2910.8,4.38107576]
[1764149822882,0.002,2910.9,2910.8,4.87207576]
[1764149823083,0.002,2910.9,2910.8,5.39073057]
[1764149823591,0.002,2911.0,2910.8,5.35637576]
[1764149823768,0.002,2911.1,2911.0,2.676]
[1764149824089,0.002,2911.1,2911.0,3.167]
[1764149824271,0.002,2911.1,2911.0,6.60224562]
[1764149824648,0.002,2911.1,2911.0,7.08654562]
[1764149825085,0.002,2911.1,2911.0,6.60224562]
[1764149825288,0.002,2911.1,2911.0,7.08654562]
[1764149825669,0.002,2911.1,2911.0,6.60224562]
[1764149826177,0.0012,2911.1,2911.0,6.60224562]
[1764149826380,0.0665,2911.1,2911.0,6.11124562]
[1764149829080,0.0012,2911.1,2911.0,6.60224562]
[1764149829412,0.0012,2911.1,2911.0,7.84649218]
[1764149829603,0.002,2911.3,2911.2,2.6728]
[1764149829779,0.002,2911.3,2911.2,3.3828]
[1764149829981,0.002,2911.3,2911.2,4.6270442]
[1764149830678,0.002,2911.3,2911.2,8.06205381]
[1764149830876,0.002,2911.3,2911.2,8.02770372]
[1764149833912,0.002,2911.3,2911.2,7.80870372]
[1764149834078,0.002,2911.3,2911.2,7.54340372]
[1764149834481,0.002,2911.3,2911.2,7.32440372]
[1764149834711,0.4945,2911.3,2911.2,6.10780961]
[1764149835094,0.5514,2911.3,2911.2,6.10780961]
[1764149835415,3.191049,2911.3,2911.2,2.6728]
[1764149835602,3.191049,2911.3,2911.2,6.10780961]
[1764149836810,3.134149,2911.3,2911.2,6.10780961]
[1764149837508,0.4945,2911.3,2911.2,6.10780961]
[1764149837709,0.002,2911.3,2911.2,6.10780961]
[1764149838009,0.4901,2911.3,2911.2,6.10780961]
[1764149838211,3.129749,2911.3,2911.2,2.6728]
[1764149838540,3.129749,2911.3,2911.2,6.10780961]
[1764149838739,0.4901,2911.3,2911.2,6.10780961]
[1764149839740,0.5513,2911.3,2911.2,6.10780961]
[1764149839946,3.190949,2911.3,2911.2,6.10780961]
[1764149840745,3.26010388,2911.3,2911.2,6.10780961]
[1764149841817,3.19890388,2911.3,2911.2,6.10780961]
[1764149842018,0.4901,2911.3,2911.2,6.10780961]
[1764149842221,0.002,2911.3,2911.2,7.09730961]
[1764149842411,0.002,2911.3,2911.2,6.60660961]
[1764149842807,0.002,2911.3,2911.2,7.09730961]
[1764149843440,0.002,2911.3,2911.2,6.60660961]
[1764149844123,0.002,2911.3,2911.2,7.09730961]
[1764149845035,0.002,2911.6,2911.3,2.6708]
[1764149845250,0.002,2911.6,2911.3,4.11419411]
[1764149845414,0.002,2911.6,2911.3,3.61539411]
[1764149846120,0.002,2911.6,2911.3,4.11419411]
[1764149846325,0.002,2911.6,2911.3,3.3886]
[1764149847251,0.002,2911.6,2911.3,6.82349162]
[1764149847453,0.002,2911.6,2911.3,6.32469162]
[1764149847953,0.002,2911.6,2911.3,6.82349162]
[1764149850350,0.0915,2911.4,2911.3,6.10569162]
[1764149850757,0.5473,2911.4,2911.3,6.10569162]
[1764149850962,0.5465,2911.4,2911.3,6.10569162]
[1764149853064,0.5465,2911.4,2911.3,3.43489162]
[1764149853446,0.0907,2911.4,2911.3,3.43489162]
[1764149853764,0.0012,2911.4,2911.3,4.64339162]
[1764149854734,0.0012,2911.4,2911.3,3.93369162]
[1764149854971,0.0908,2911.4,2911.3,6.10569162]
[1764149855149,0.0012,2911.4,2911.3,6.10569162]
[1764149855364,0.0012,2911.4,2911.3,6.63884053]
[1764149855571,0.0012,2911.4,2911.3,7.09519162]
[1764149855772,0.0012,2911.4,2911.3,6.82349162]
[1764149856991,0.0012,2911.4,2911.3,7.31419162]
[1764149858292,0.0012,2911.4,2911.3,6.82349162]
[1764149861994,0.0012,2911.4,2911.3,6.60449162]
[1764149862167,0.0012,2911.4,2911.3,6.82349162]
[1764149863467,0.0908,2911.4,2911.3,6.10569162]
[1764149863774,0.5466,2911.4,2911.3,6.10569162]
[1764149864304,0.0908,2911.4,2911.3,6.10569162]
[1764149864504,0.0012,2911.4,2911.3,6.61864053]
[1764149864706,0.0757,2911.4,2911.3,2.6708]
[1764149864907,0.5465,2911.4,2911.3,2.6708]
[1764149865281,0.5465,2911.4,2911.3,6.10569162]
[1764149867372,0.5465,2911.4,2911.3,6.10669162]
[1764149868707,0.0012,2911.4,2911.3,6.58529162]
[1764149869220,0.0012,2911.4,2911.3,4.62449162]
[1764149869509,0.0012,2911.4,2911.3,6.08878433]
[1764149869682,0.0012,2911.4,2911.3,5.86978433]
[1764149869880,0.0012,2911.4,2911.3,6.08878433]
[1764149871802,0.0012,2911.4,2911.3,8.79393324]
[1764149872002,0.0012,2911.4,2911.3,8.75958433]
[1764149874211,0.002,2911.6,2911.5,3.39519411]
[1764149874418,0.002,2911.6,2911.5,3.90814066]
[1764149874585,0.002,2911.6,2911.5,4.39914066]
[1764149874996,0.002,2911.6,2911.5,4.53676015]
[1764149875699,0.4859,2911.6,2911.5,2.6596]
[1764149875900,0.4859,2911.6,2911.3,0.001]
[1764149875901,0.5506,2911.6,2911.3,0.001]
[1764149876108,0.4847,2911.4,2911.3,0.001]
[1764149876496,0.5494,2911.4,2911.3,0.001]
[1764149879404,0.0012,2911.6,2911.3,0.001]
[1764149879593,0.4847,2911.4,2911.3,0.001]
[1764149881229,0.5494,2911.4,2911.3,0.001]
[1764149882235,0.4847,2911.4,2911.3,0.001]
[1764149882797,0.0012,2911.6,2911.4,6.86954728]
[1764149883020,0.0012,2911.6,2911.5,0.4627]
[1764149883408,0.0012,2911.6,2911.5,0.9609]
[1764149884909,0.0012,2911.6,2911.5,4.39555567]
[1764149885112,0.0012,2911.6,2911.5,7.05515567]
[1764149885803,0.0012,2911.6,2911.5,13.50515567]
[1764149886140,0.0012,2911.6,2911.5,8.18625378]
[1764149886303,0.0012,2911.6,2911.5,8.32384061]
[1764149886912,0.0012,2911.6,2911.5,8.13733661]
[1764149890939,0.0012,2911.6,2911.5,8.54284061]
[1764149891112,0.002,2911.7,2911.6,3.78949811]
[1764149891315,0.002,2911.7,2911.6,4.75039811]
[1764149891518,1e-08,2911.8,2911.7,3.89711975]
[1764149891835,1e-08,2911.8,2911.7,4.39531975]
[1764149892035,1e-08,2911.8,2911.7,4.42966394]
[1764149892734,1e-08,2911.8,2911.7,4.5672484]
[1764149893940,1e-08,2911.8,2911.7,4.53290421]
[1764149894236,1e-08,2911.8,2911.7,4.5672484]
[1764149894744,1e-08,2911.8,2911.7,14.40124251]
[1764149894904,1e-08,2911.8,2911.7,14.36689832]
[1764149897413,1e-08,2911.8,2911.7,14.58589832]
[1764149897925,0.4592,2912.6,2912.3,2.65039999]
[1764149898132,0.4592,2912.6,2912.3,2.64039999]
[1764149898345,0.0919,2912.4,2912.3,2.64039999]
[1764149898639,0.0919,2912.4,2912.3,2.85939999]
[1764149898833,0.0919,2912.4,2912.3,2.84119999]
[1764149899328,0.5474,2912.4,2912.3,6.27491217]
[1764149899640,0.0919,2912.4,2912.3,6.05591217]
[1764149899833,0.5474,2912.4,2912.3,6.27491217]
[1764149900337,0.5466,2912.4,2912.3,6.27491217]
[1764149900644,0.0911,2912.4,2912.3,6.27491217]
[1764149902513,0.0012,2912.4,2912.3,6.75051217]
[1764149903211,0.4629,2912.4,2912.3,6.26491217]
[1764149903448,0.0012,2912.4,2912.3,6.75051217]
[1764149903811,0.0012,2912.4,2912.3,7.20931217]
[1764149904143,0.0012,2912.4,2912.3,7.34688575]
[1764149904364,0.0911,2912.4,2912.3,2.74977357]
[1764149904528,0.0911,2912.4,2910.9,0.001]
[1764149904529,0.405504,2911.8,2911.5,0.001]
[1764149904728,1.18169811,2911.6,2911.5,0.001]
[1764149904969,2.55513728,2911.6,2911.5,0.001]
[1764149905139,1.85579873,2911.6,2911.5,0.001]
[1764149905341,0.40756969,2911.6,2911.5,0.001]
[1764149905560,0.675404,2911.6,2911.5,0.001]
[1764149907330,0.99405326,2911.6,2911.5,0.001]
[1764149909765,0.53624926,2911.6,2911.5,0.001]
[1764149910131,0.58854926,2911.6,2911.5,0.001]
[1764149910534,0.99405326,2911.6,2911.5,0.001]
[1764149911235,0.94175326,2911.6,2911.5,0.001]
[1764149911434,0.2176,2911.6,2911.5,0.001]
[1764149913459,0.2699,2911.6,2911.5,0.001]
[1764149914084,0.0523,2911.9,2911.5,0.001]
[1764149914382,0.216,2911.6,2911.5,0.001]
[1764149914752,0.405504,2912.0,2911.5,0.001]
[1764149915279,0.624804,2912.0,2911.5,0.001]
[1764149916489,0.4393,2912.3,2911.5,0.001]
[1764149916665,0.72405103,2912.2,2911.5,0.4598]
[1764149916865,0.405504,2912.2,2911.5,0.4598]
[1764149917185,0.624804,2912.2,2911.5,0.001]
[1764149919876,0.405504,2912.2,2911.5,0.001]
[1764149920081,0.22,2912.3,2911.5,0.4598]
[1764149920454,0.22,2912.3,2911.6,6.86907542]
[1764149920997,0.0506,2911.7,2911.6,3.43453771]
[1764149921197,0.0506,2911.7,2911.5,0.001]
[1764149921488,0.675404,2911.6,2911.5,0.001]
[1764149921991,0.99379672,2911.6,2911.5,0.001]
[1764149922658,5.15392854,2911.6,2911.5,0.001]
[1764149924471,1.71939083,2911.6,2911.5,0.001]
[1764149925075,1.71859083,2911.6,2911.5,0.001]
[1764149925387,1.71859083,2911.6,2911.0,0.001]
[1764149925388,3.337577,2911.0,2910.0,0.001]
[1764149925591,0.2173,2910.1,2910.0,0.001]
[1764149925759,0.75303542,2910.1,2910.0,0.001]
[1764149926079,0.97403542,2910.1,2910.0,0.001]
[1764149927082,1.37953942,2910.1,2910.0,0.001]
[1764149927282,5.54144156,2910.1,2910.0,0.001]
[1764149928297,1.78669811,2910.1,2910.0,0.001]
[1764149928695,2.10423262,2910.1,2910.0,0.001]
[1764149928882,1.78669811,2910.1,2910.0,0.001]
[1764149929196,2.10412094,2910.1,2910.0,0.001]
[1764149930064,5.54042897,2910.1,2910.0,0.001]
[1764149930263,2.10412094,2910.1,2910.0,0.001]
[1764149930464,5.54042897,2910.1,2910.0,0.001]
[1764149930874,2.10412094,2910.1,2910.0,0.001]
[1764149931287,5.54042897,2910.1,2910.0,0.001]
[1764149933181,1.88682094,2910.1,2910.0,0.001]
[1764149933587,5.32312897,2910.1,2910.0,0.001]
[1764149933793,5.54042897,2910.1,2910.0,0.001]
[1764149936691,0.221,2910.1,2910.0,0.4558]
[1764149937707,0.626504,2910.1,2910.0,0.4558]
[1764149938102,0.626504,2910.1,2910.0,3.1058]
[1764149938401,0.843804,2910.1,2910.0,2.651]
[1764149939301,0.626504,2910.1,2910.0,2.651]
[1764149939472,0.626504,2910.1,2910.0,3.1058]